bitfinex-derivatives/quotes_BTCF0:USTF0_20251120
["timestamp","ask_amount","ask_price","bid_price","bid_amount"]
[1763600157864,0.04275314,91941.0,91940.0,0.1542285]
[1763600158059,0.04495117,91941.0,91940.0,0.1542285]
[1763600161269,0.04495117,91941.0,91940.0,0.1552285]
[1763600161974,0.04495117,91941.0,91940.0,0.1542285]
[1763600164672,0.04763117,91941.0,91940.0,0.1542285]
[1763600165569,0.00236117,91941.0,91940.0,0.1542285]
[1763600166166,0.00016314,91941.0,91940.0,0.1542285]
[1763600166859,0.00016314,91941.0,91940.0,0.2594285]
[1763600167259,0.3608,91958.0,91940.0,0.2594285]
[1763600167260,0.3608,91958.0,91957.0,0.1088583]
[1763600167461,0.3608,91958.0,91957.0,0.1523583]
[1763600167668,0.05851184,91966.0,91965.0,0.1523489]
[1763600167973,0.06070987,91966.0,91965.0,0.1523489]
[1763600171474,0.04773987,91966.0,91965.0,0.1523489]
[1763600171873,0.04773987,91966.0,91965.0,0.0435]
[1763600172462,0.04527,91960.0,91959.0,0.38972169]
[1763600172668,0.04746803,91960.0,91959.0,0.12753]
[1763600173176,0.04746803,91960.0,91959.0,0.14866]
[1763600180375,0.02458803,91960.0,91959.0,0.14866]
[1763600180574,0.00219803,91960.0,91959.0,0.14866]
[1763600181182,0.00219803,91960.0,91959.0,0.50946]
[1763600181390,0.00219803,91960.0,91959.0,0.54802976]
[1763600182177,0.04554184,91966.0,91965.0,0.0435]
[1763600182483,0.04554184,91966.0,91965.0,0.1523488]
[1763600182970,0.02266184,91966.0,91965.0,0.1523488]
[1763600183172,0.00027184,91966.0,91965.0,0.1523488]
[1763600184186,0.00016314,91975.0,91973.0,0.1643094]
[1763600184483,0.38319,91974.0,91973.0,0.2694694]
[1763600184678,0.40607,91974.0,91973.0,0.2574994]
[1763600185489,0.3608,91974.0,91973.0,0.2574994]
[1763600185690,0.36299803,91974.0,91973.0,0.2574994]
[1763600185984,0.38538803,91974.0,91973.0,0.2574994]
[1763600186184,0.40826803,91974.0,91973.0,0.14866]
[1763600187385,0.40826803,91974.0,91965.0,0.1088478]
[1763600187386,0.15369,91964.0,91963.0,0.02889288]
[1763600187584,0.04484,91957.0,91956.0,0.00016314]
[1763600187885,0.1537125,91945.0,91944.0,0.10516]
[1763600188088,0.1537125,91945.0,91936.0,0.03856976]
[1763600188089,0.04484,91935.0,91934.0,0.02889288]
[1763600188283,0.04484,91932.0,91931.0,0.02284]
[1763600188482,0.00219803,91932.0,91931.0,0.04569]
[1763600189783,0.00219803,91932.0,91931.0,0.07458288]
[1763600190178,0.00219803,91932.0,91931.0,0.04569]
[1763600190383,0.04500314,91941.0,91940.0,0.04569]
[1763600190585,0.04720117,91941.0,91940.0,0.04569]
[1763600191390,0.04484,91934.0,91933.0,0.40649]
[1763600191580,0.04703803,91934.0,91933.0,0.40649]
[1763600191786,0.04703803,91934.0,91933.0,0.04569]
[1763600192780,0.00219803,91934.0,91933.0,0.04569]
[1763600192981,0.00219803,91934.0,91933.0,0.08425976]
[1763600193183,0.00016314,91941.0,91933.0,0.08425976]
[1763600193489,0.00016314,91941.0,91940.0,0.1532284]
[1763600193786,0.00016314,91941.0,91940.0,0.2583884]
[1763600194188,0.00016314,91941.0,91940.0,0.29695816]
[1763600195180,0.00016314,91941.0,91940.0,0.2583884]
[1763600197882,0.00016314,91941.0,91940.0,0.29696671]
[1763600198282,0.00016314,91941.0,91940.0,0.2583884]
[1763600198985,0.00016314,91941.0,91940.0,0.29696671]
[1763600199184,0.00016314,91941.0,91940.0,0.2583884]
[1763600199387,0.00016314,91941.0,91940.0,0.29696671]
[1763600200385,0.38277,91958.0,91957.0,0.1532083]
[1763600200599,0.40618803,91958.0,91957.0,0.1532083]
[1763600201188,0.40618803,91958.0,91957.0,0.04435]
[1763600201387,0.04319,91953.0,91952.0,0.09951]
[1763600201587,0.04319,91953.0,91940.0,0.3608]
[1763600201588,0.1660025,91945.0,91944.0,0.00357111]
[1763600201788,0.1088891,91931.0,91930.0,0.02893934]
[1763600201992,0.1088891,91931.0,91921.0,0.3608]
[1763600201993,0.05713,91928.0,91927.0,0.02893934]
[1763600202190,0.04319,91927.0,91926.0,0.0292113]
[1763600202383,0.04538803,91927.0,91926.0,0.0292113]
[1763600202589,0.04538803,91927.0,91926.0,0.02302196]
[1763600203596,0.04538803,91927.0,91926.0,0.04462196]
[1763600207296,0.04538803,91927.0,91926.0,0.15351696]
[1763600209202,0.00219803,91927.0,91926.0,0.15351696]
[1763600209497,0.02213314,91936.0,91935.0,0.04435]
[1763600209696,0.04408581,91936.0,91935.0,0.04654803]
[1763600210698,0.04408581,91936.0,91935.0,0.00219803]
[1763600213806,0.04408581,91936.0,91935.0,0.04654803]
[1763600214900,0.04408581,91936.0,91935.0,0.00219803]
[1763600215106,0.1520815,91929.0,91928.0,0.12791]
[1763600215300,0.15281417,91929.0,91928.0,0.13010803]
[1763600215494,0.15281417,91929.0,91928.0,0.15170803]
[1763600215695,0.15281417,91929.0,91928.0,0.26060073]
[1763600216193,0.15281417,91929.0,91928.0,0.15170803]
[1763600217108,0.15281417,91929.0,91928.0,0.10735803]
[1763600217301,0.51361417,91929.0,91928.0,0.10735803]
[1763600217610,0.51361417,91929.0,91928.0,0.15170803]
[1763600217796,0.51361417,91929.0,91928.0,0.13010803]
[1763600218702,0.40472267,91929.0,91928.0,0.23900073]
[1763600218898,0.40472267,91929.0,91928.0,0.26060073]
[1763600219208,0.40472267,91929.0,91928.0,0.10735803]
[1763600219399,0.40472267,91929.0,91928.0,0.13010803]
[1763600220400,0.40472267,91929.0,91928.0,0.15170803]
[1763600222103,0.04397,91927.0,91926.0,0.00027196]
[1763600222303,0.1528745,91918.0,91917.0,0.15656929]
[1763600222505,0.51440717,91918.0,91917.0,0.00016314]
[1763600224611,0.51440717,91918.0,91917.0,0.02516314]
[1763600225400,0.1528887,91906.0,91905.0,0.13594365]
[1763600225595,0.04470267,91906.0,91905.0,0.15929168]
[1763600227011,0.04470267,91906.0,91905.0,0.05037278]
[1763600227209,0.04470267,91906.0,91905.0,0.02922278]
[1763600227403,0.04470267,91906.0,91905.0,0.00722278]
[1763600227601,0.04470267,91906.0,91905.0,0.02922278]
[1763600229208,0.04470267,91906.0,91905.0,0.05422278]
[1763600230417,0.04470267,91906.0,91905.0,0.05722278]
[1763600231510,0.04470267,91906.0,91905.0,0.10037278]
[1763600231716,0.04470267,91906.0,91905.0,0.05722278]
[1763600232214,0.04470267,91906.0,91905.0,0.07922278]
[1763600232413,0.04470267,91906.0,91905.0,0.10037278]
[1763600233114,0.04470267,91906.0,91905.0,0.05502475]
[1763600235607,0.04470267,91906.0,91905.0,0.09817475]
[1763600236008,0.04470267,91906.0,91905.0,0.10037278]
[1763600237915,0.15362137,91906.0,91905.0,0.10037278]
[1763600238122,0.15362137,91906.0,91905.0,0.09817475]
[1763600238819,0.04470267,91906.0,91905.0,0.09817475]
[1763600239022,0.00073267,91906.0,91905.0,0.10037278]
[1763600241715,0.3608,91910.0,91909.0,0.04315]
[1763600241910,0.3608,91926.0,91914.0,0.1520592]
[1763600242116,3.14e-06,91915.0,91914.0,0.25945723]
[1763600242315,0.3608,91934.0,91929.0,0.022]
[1763600242316,0.1528609,91930.0,91929.0,0.022]
[1763600242516,0.51439357,91930.0,91929.0,0.00219803]
[1763600243026,0.40550267,91930.0,91929.0,0.04534803]
[1763600245027,0.51439297,91930.0,91929.0,0.04534803]
[1763600245223,0.40550267,91930.0,91929.0,0.04534803]
[1763600247825,0.36153267,91930.0,91929.0,0.15423953]
[1763600248033,0.00073267,91930.0,91929.0,0.15423953]
[1763600248328,0.00016314,91939.0,91938.0,0.1523908]
[1763600248520,0.00016314,91939.0,91938.0,0.15458883]
[1763600248916,0.00016314,91939.0,91938.0,0.15869883]
[1763600249116,0.04282,91952.0,91951.0,0.04351]
[1763600249328,0.04282,91952.0,91951.0,0.15457343]
[1763600249329,0.04355267,91952.0,91951.0,0.15457343]
[1763600250633,0.05691267,91952.0,91951.0,0.04570803]
[1763600251829,0.04355267,91952.0,91951.0,0.04570803]
[1763600252823,0.02232267,91952.0,91951.0,0.04570803]
[1763600255539,0.36096314,91961.0,91951.0,0.04570803]
[1763600255540,0.04421,91959.0,91958.0,0.04479]
[1763600255739,0.04421,91959.0,91958.0,0.15584513]
[1763600256323,0.04421,91959.0,91958.0,0.04698803]
[1763600264350,0.36096314,91961.0,91958.0,0.04698803]
[1763600264351,0.36096314,91961.0,91960.0,0.04479]
[1763600264652,0.00016314,91961.0,91960.0,0.04698803]
[1763600264949,0.00027184,91966.0,91965.0,0.04479]
[1763600265152,0.00027184,91966.0,91965.0,0.04698803]
[1763600265647,0.00027184,91966.0,91965.0,0.15583693]
[1763600266140,0.00027184,91966.0,91965.0,0.04698803]
[1763600266342,0.05726184,91966.0,91965.0,0.00219803]
[1763600267053,0.41806184,91966.0,91965.0,0.00219803]
[1763600271453,0.04421,91958.0,91957.0,0.04479]
[1763600271648,0.40501,91958.0,91957.0,0.04698803]
[1763600276652,0.5138671,91958.0,91957.0,0.04698803]
[1763600276854,0.40501,91958.0,91957.0,0.04698803]
[1763600277056,0.04421,91958.0,91957.0,0.04698803]
[1763600282051,0.40501,91958.0,91957.0,0.00219803]
[1763600282258,0.40501,91958.0,91949.0,0.39945897]
[1763600282259,0.05923,91950.0,91949.0,0.39945897]
[1763600282456,0.05923,91950.0,91949.0,0.36299803]
[1763600282649,0.05923,91950.0,91949.0,0.40724803]
[1763600282850,0.05923,91950.0,91949.0,0.51611583]
[1763600283049,0.05923,91950.0,91949.0,0.40724803]
[1763600285852,0.1680966,91950.0,91949.0,0.04644803]
[1763600286061,0.5288966,91950.0,91949.0,0.00219803]
[1763600287755,0.04527,91943.0,91942.0,0.04441314]
[1763600288056,0.04527,91943.0,91942.0,0.00236117]
[1763600288947,0.04527,91943.0,91942.0,0.02367117]
[1763600289345,0.04527,91943.0,91942.0,0.00016314]
[1763600289552,0.1088902,91931.0,91930.0,0.1088891]
[1763600289750,0.1088902,91931.0,91930.0,0.00219803]
[1763600289751,0.1541602,91931.0,91930.0,0.00219803]
[1763600290757,0.04527,91922.0,91921.0,0.10906384]
[1763600290958,0.40607,91922.0,91921.0,0.11126187]
[1763600291255,0.40607,91922.0,91921.0,0.15551187]
[1763600296857,0.40607,91930.0,91929.0,0.1531415]
[1763600297052,0.40607,91930.0,91929.0,0.15533953]
[1763600297755,0.04527,91930.0,91929.0,0.15533953]
[1763600299168,0.04527,91930.0,91929.0,0.04644803]
[1763600308275,0.04527,91930.0,91929.0,0.085107]
[1763600309161,0.04527,91930.0,91929.0,0.04644803]
[1763600310559,0.02265,91930.0,91929.0,0.04644803]
[1763600310765,0.00016314,91931.0,91930.0,0.1538503]
[1763600310973,0.02197314,91931.0,91930.0,0.15604833]
[1763600311769,0.02197314,91931.0,91930.0,0.16951833]
[1763600313667,0.04486314,91931.0,91930.0,0.15604833]
[1763600313867,0.04486314,91931.0,91930.0,0.04715803]
[1763600317380,0.04486314,91931.0,91930.0,0.10518682]
[1763600318082,0.51455224,91931.0,91930.0,0.05802879]
[1763600318377,0.04283,91922.0,91921.0,0.00016314]
[1763600318579,0.40363,91922.0,91921.0,0.08695744]
[1763600318780,0.04283,91922.0,91921.0,0.04819117]
[1763600318971,0.1517298,91922.0,91921.0,0.04819117]
[1763600319481,0.1517298,91922.0,91921.0,0.08695433]
[1763600321384,0.1517298,91922.0,91921.0,0.04819117]
[1763600321782,0.1517298,91922.0,91921.0,0.00236117]
[1763600321981,0.1517298,91922.0,91921.0,0.02552117]
[1763600322776,0.1517298,91922.0,91921.0,0.00236117]
[1763600323173,0.1517298,91922.0,91913.0,0.05802879]
[1763600323174,0.05348,91914.0,91913.0,0.05802879]
[1763600323490,0.00219803,91914.0,91913.0,0.15547307]
[1763600324783,0.00219803,91914.0,91913.0,0.04656267]
[1763600324986,0.04502803,91914.0,91913.0,0.04656267]
[1763600328281,0.00219803,91914.0,91913.0,0.04656267]
[1763600329080,0.3608,91921.0,91920.0,0.05973]
[1763600329289,0.36299803,91921.0,91920.0,0.16936477]
[1763600329485,0.38417803,91921.0,91920.0,0.16936477]
[1763600329688,0.38417803,91921.0,91920.0,0.06046267]
[1763600330078,0.51472903,91921.0,91920.0,0.06046267]
[1763600330475,0.40582803,91921.0,91920.0,0.06046267]
[1763600333579,0.04502803,91921.0,91920.0,0.06046267]
[1763600334081,0.3608,91930.0,91929.0,0.04583]
[1763600334082,0.40363,91930.0,91929.0,0.04583]
[1763600334286,0.40363,91930.0,91929.0,0.04656267]
[1763600334287,0.40582803,91930.0,91929.0,0.04656267]
[1763600335485,0.40582803,91930.0,91929.0,0.02389267]
[1763600335691,0.40582803,91930.0,91929.0,0.04656267]
[1763600335891,0.04502803,91930.0,91929.0,0.04656267]
[1763600336992,0.00219803,91930.0,91929.0,0.04656267]
[1763600337197,0.04502803,91930.0,91929.0,0.04656267]
[1763600337993,0.40582803,91930.0,91929.0,0.04656267]
[1763600339286,0.40582803,91930.0,91929.0,0.00073267]
[1763600339600,0.40582803,91930.0,91929.0,0.02389267]
[1763600339796,0.40582803,91930.0,91929.0,0.04656267]
[1763600342102,0.40582803,91930.0,91929.0,0.00073267]
[1763600342303,0.40582803,91930.0,91929.0,0.02377267]
[1763600342800,0.40582803,91930.0,91929.0,0.00073267]
[1763600343002,0.40582803,91930.0,91920.0,0.54982864]
[1763600343003,0.04546,91921.0,91920.0,0.54982864]
[1763600343214,0.04765803,91921.0,91920.0,0.26011457]
[1763600343422,0.15655903,91921.0,91920.0,0.26011457]
[1763600343608,0.04765803,91921.0,91920.0,0.26011457]
[1763600344709,0.04765803,91921.0,91920.0,0.15121267]
[1763600346314,0.04765803,91921.0,91920.0,0.10585267]
[1763600346703,0.04765803,91921.0,91916.0,0.05802879]
[1763600346704,0.1089057,91917.0,91916.0,0.05802879]
[1763600346904,0.1089057,91917.0,91916.0,0.00073267]
[1763600346905,0.15656373,91917.0,91916.0,0.00073267]
[1763600348115,0.15656373,91917.0,91911.0,0.16694119]
[1763600348116,0.04546,91912.0,91911.0,0.21230159]
[1763600348424,0.04765803,91912.0,91911.0,0.21303426]
[1763600350027,0.40626,91922.0,91921.0,0.04536]
[1763600350323,0.04765803,91922.0,91921.0,0.04609267]
[1763600351210,0.02517803,91922.0,91921.0,0.04609267]
[1763600351407,0.00219803,91922.0,91921.0,0.04609267]
[1763600352015,0.02517803,91922.0,91921.0,0.04609267]
[1763600352716,0.40626,91930.0,91929.0,0.04536]
[1763600352922,0.40845803,91930.0,91929.0,0.04609267]
[1763600353314,0.51734833,91930.0,91929.0,0.04609267]
[1763600354928,0.40845803,91930.0,91929.0,0.04609267]
[1763600360622,0.40845803,91930.0,91929.0,0.00073267]
[1763600360930,0.41974803,91930.0,91929.0,0.00073267]
[1763600361434,0.1543515,91929.0,91927.0,0.03875906]
[1763600361731,0.1543538,91927.0,91926.0,0.03875906]
[1763600362028,0.04546,91923.0,91922.0,0.1542598]
[1763600362226,0.04765803,91923.0,91922.0,0.15499247]
[1763600363027,0.04765803,91923.0,91922.0,0.04609267]
[1763600364133,0.04765803,91923.0,91922.0,0.00073267]
[1763600364534,0.04765803,91923.0,91922.0,0.02377267]
[1763600364829,0.04765803,91923.0,91922.0,0.04609267]
[1763600365028,0.04765803,91923.0,91922.0,0.08485173]
[1763600367729,0.04765803,91923.0,91922.0,0.04609267]
[1763600371032,0.00219803,91923.0,91922.0,0.04609267]
[1763600371432,0.02383803,91923.0,91922.0,0.04609267]
[1763600371634,0.00219803,91923.0,91922.0,0.04609267]
[1763600372538,0.02383803,91923.0,91922.0,0.04609267]
[1763600373426,0.00219803,91923.0,91922.0,0.04609267]
[1763600374537,0.4058,91930.0,91929.0,0.1529715]
[1763600374739,0.40799803,91930.0,91929.0,0.15370417]
[1763600375742,0.00016314,91931.0,91930.0,0.05755]
[1763600375931,0.04736117,91931.0,91930.0,0.16336267]
[1763600376129,0.04736117,91931.0,91930.0,0.27225297]
[1763600379542,0.02555117,91931.0,91930.0,0.27225297]
[1763600380041,0.00236117,91931.0,91930.0,0.27225297]
[1763600380742,0.00016314,91931.0,91930.0,0.27225297]
[1763600381745,0.04516314,91931.0,91930.0,0.16336267]
[1763600381937,0.04736117,91931.0,91930.0,0.16336267]
[1763600383635,0.02555117,91931.0,91930.0,0.16336267]
[1763600383842,0.04736117,91931.0,91930.0,0.16336267]
[1763600385542,0.04736117,91931.0,91930.0,0.22139146]
[1763600385744,0.04516314,91931.0,91930.0,0.22139146]
[1763600388041,0.02335314,91931.0,91930.0,0.22139146]
[1763600388238,0.00016314,91931.0,91930.0,0.22139146]
[1763600389650,0.3608,91950.0,91949.0,0.04408]
[1763600389851,0.40799803,91950.0,91949.0,0.04481267]
[1763600392661,0.40799803,91950.0,91949.0,0.02254267]
[1763600393656,0.40799803,91950.0,91949.0,0.00073267]
[1763600393852,0.40799803,91950.0,91949.0,0.02254267]
[1763600394360,0.40799803,91950.0,91949.0,0.00073267]
[1763600396253,0.1538772,91941.0,91940.0,0.00016314]
[1763600396446,0.51687523,91941.0,91940.0,0.00016314]
[1763600396959,0.51687523,91941.0,91940.0,0.04424314]
[1763600397261,0.51687523,91941.0,91940.0,0.02270581]
[1763600397559,0.51687523,91941.0,91940.0,0.04497581]
[1763600399759,0.40799803,91941.0,91940.0,0.04497581]
[1763600400456,0.40799803,91941.0,91940.0,0.15726936]
[1763600400657,0.40799803,91941.0,91940.0,0.00016314]
[1763600401362,0.40799803,91941.0,91940.0,0.04497581]
[1763600401662,0.40799803,91941.0,91940.0,0.05844581]
[1763600401961,0.40799803,91941.0,91940.0,0.04497581]
[1763600402558,0.51687523,91941.0,91940.0,0.00089581]
[1763600402759,0.51687523,91941.0,91940.0,0.02413581]
[1763600402958,0.51687523,91941.0,91940.0,0.00089581]
[1763600403863,0.51687523,91941.0,91940.0,0.02413581]
[1763600404258,0.51687523,91941.0,91940.0,0.04560581]
[1763600404466,0.51687523,91941.0,91940.0,0.02413581]
[1763600405166,0.51687523,91941.0,91940.0,0.00089581]
[1763600405468,0.40799803,91941.0,91940.0,0.04560581]
[1763600406068,0.40799803,91941.0,91940.0,0.05885581]
[1763600406460,0.40799803,91941.0,91940.0,0.09766012]
[1763600407069,0.40799803,91941.0,91940.0,0.05885581]
[1763600408170,0.02538803,91941.0,91940.0,0.05885581]
[1763600408374,0.04764803,91941.0,91940.0,0.05885581]
[1763600414869,0.15652523,91941.0,91940.0,0.05885581]
[1763600415070,0.04764803,91941.0,91940.0,0.05885581]
[1763600415271,0.04545,91941.0,91940.0,0.16773421]
[1763600415571,0.3608,91950.0,91949.0,0.1535777]
[1763600415572,0.04393,91950.0,91949.0,0.1535777]
[1763600415772,0.04612803,91950.0,91949.0,0.15431037]
[1763600416375,0.36096314,91959.0,91958.0,0.1535671]
[1763600416376,0.40489314,91959.0,91958.0,0.1535671]
[1763600416572,0.36096314,91959.0,91958.0,0.15429977]
[1763600416768,0.00016314,91959.0,91958.0,0.15429977]
[1763600417370,0.02194184,91966.0,91965.0,0.1535588]
[1763600417569,0.02194184,91966.0,91965.0,0.15429147]
[1763600419079,0.04420184,91966.0,91965.0,0.15429147]
[1763600419375,0.00016314,91975.0,91974.0,0.1667982]
[1763600419674,0.00016314,91975.0,91974.0,0.05869267]
[1763600419675,0.04629117,91975.0,91974.0,0.05869267]
[1763600419876,0.04629117,91975.0,91974.0,0.00073267]
[1763600420270,0.1527776,91966.0,91965.0,0.02340314]
[1763600420480,0.51577563,91966.0,91965.0,0.02413581]
[1763600420882,0.51577563,91966.0,91965.0,0.04560581]
[1763600422270,0.51577563,91966.0,91965.0,0.00089581]
[1763600422582,0.51577563,91966.0,91965.0,0.00016314]
[1763600423372,0.1527989,91948.0,91947.0,0.04471]
[1763600423572,0.51579693,91948.0,91947.0,0.04544267]
[1763600425582,0.04393,91940.0,91939.0,0.1535896]
[1763600425772,0.04612803,91940.0,91939.0,0.04544267]
[1763600427485,0.02386803,91940.0,91939.0,0.04544267]
[1763600428486,0.40568,91948.0,91947.0,0.04526]
[1763600428686,0.40787803,91948.0,91947.0,0.15486277]
[1763600430175,0.00219803,91948.0,91947.0,0.15486277]
[1763600430376,0.00016314,91949.0,91948.0,0.04526]
[1763600430580,0.3608,91956.0,91955.0,0.1541206]
[1763600430783,0.3608,91956.0,91955.0,0.15485327]
[1763600431087,0.3608,91956.0,91955.0,0.04599267]
[1763600431088,0.40787803,91956.0,91955.0,0.04599267]
[1763600431289,0.40787803,91956.0,91955.0,0.00073267]
[1763600431484,0.41916803,91956.0,91955.0,0.00073267]
[1763600431693,0.1537501,91947.0,91946.0,0.30662845]
[1763600431990,0.1537501,91947.0,91946.0,0.15103267]
[1763600431991,0.04707803,91947.0,91946.0,0.15103267]
[1763600439810,0.3608,91948.0,91947.0,0.1541401]
[1763600440003,0.38278,91957.0,91956.0,0.05817]
[1763600440203,0.38497803,91957.0,91956.0,0.16776207]
[1763600440712,0.40601803,91957.0,91956.0,0.16776207]
[1763600441113,0.40601803,91957.0,91956.0,0.05890267]
[1763600441903,0.00219803,91957.0,91956.0,0.05890267]
[1763600442109,0.02198,91957.0,91956.0,0.05890267]
[1763600442514,0.02417803,91957.0,91956.0,0.05890267]
[1763600446615,0.04521803,91957.0,91956.0,0.05890267]
[1763600447016,0.40601803,91957.0,91956.0,0.00073267]
[1763600447212,0.1518889,91948.0,91947.0,0.56239845]
[1763600447416,0.04521803,91948.0,91947.0,0.40680267]
[1763600447615,0.04521803,91948.0,91947.0,0.04600267]
[1763600452015,0.04302,91945.0,91944.0,0.03875743]
[1763600452219,0.04302,91945.0,91944.0,0.00073267]
[1763600452220,0.04521803,91945.0,91944.0,0.00073267]
[1763600452415,0.04521803,91945.0,91944.0,0.04600267]
[1763600453127,0.04521803,91945.0,91944.0,0.05890267]
[1763600453426,0.00219803,91945.0,91944.0,0.05890267]
[1763600454230,0.40382,91957.0,91956.0,0.1670294]
[1763600454421,0.40601803,91957.0,91956.0,0.16776207]
[1763600455521,0.40601803,91957.0,91956.0,0.04600267]
[1763600457335,0.04302,91951.0,91950.0,0.05817]
[1763600457535,0.15408343,91951.0,91950.0,0.04600267]
[1763600458328,0.15408343,91951.0,91950.0,0.02404267]
[1763600458728,0.15408343,91951.0,91950.0,0.04600267]
[1763600460135,0.1518925,91945.0,91944.0,0.15031]
[1763600460334,0.1518996,91939.0,91938.0,0.08419057]
[1763600460536,0.15409763,91939.0,91938.0,0.00016314]
[1763600463437,0.04462,91927.0,91926.0,0.00027196]
[1763600463636,0.40761803,91927.0,91926.0,0.00027196]
[1763600464737,0.40761803,91927.0,91926.0,0.04390196]
[1763600464941,0.40761803,91927.0,91926.0,0.04463463]
[1763600465747,0.40761803,91927.0,91926.0,0.00100463]
[1763600466228,0.40761803,91927.0,91926.0,0.02299463]
[1763600466431,0.40761803,91927.0,91926.0,0.04463463]
[1763600466831,0.40761803,91927.0,91926.0,0.04390196]
[1763600468143,0.40761803,91927.0,91926.0,0.04463463]
[1763600468357,0.36299803,91927.0,91926.0,0.04463463]
[1763600468855,0.00219803,91927.0,91926.0,0.04463463]
[1763600469544,0.04681803,91927.0,91926.0,0.04463463]
[1763600475049,0.04681803,91927.0,91926.0,0.00100463]
[1763600476839,0.04681803,91927.0,91926.0,0.02299463]
[1763600477144,0.04681803,91927.0,91926.0,0.00100463]
[1763600477645,0.04681803,91927.0,91926.0,0.04463463]
[1763600481842,0.00219803,91927.0,91926.0,0.04463463]
[1763600482739,0.02219314,91936.0,91935.0,0.1525143]
[1763600482938,0.00236117,91936.0,91935.0,0.15324697]
[1763600483653,0.02439117,91936.0,91935.0,0.15324697]
[1763600484846,0.00016314,91936.0,91935.0,0.15324697]
[1763600485245,0.00016314,91936.0,91935.0,0.25828697]
[1763600485647,0.02219314,91936.0,91935.0,0.25828697]
[1763600485856,0.00016314,91936.0,91935.0,0.25828697]
[1763600486151,0.4051,91961.0,91960.0,0.1530047]
[1763600486351,0.40729803,91961.0,91960.0,0.04488267]
[1763600486543,0.0443,91946.0,91945.0,0.0571]
[1763600486736,0.04649803,91946.0,91945.0,0.05783267]
[1763600488737,0.02541803,91946.0,91945.0,0.05783267]
[1763600489051,0.00219803,91946.0,91945.0,0.05783267]
[1763600489642,0.04649803,91946.0,91945.0,0.05783267]
[1763600489834,0.3608,91952.0,91951.0,0.1307254]
[1763600490038,0.38621803,91952.0,91951.0,0.15374807]
[1763600490240,0.00219803,91952.0,91951.0,0.15374807]
[1763600494153,0.00016314,91955.0,91954.0,0.1541018]
[1763600494353,0.00016314,91955.0,91954.0,0.15483447]
[1763600495858,0.04523117,91955.0,91954.0,0.00073267]
[1763600496059,0.04523117,91955.0,91954.0,0.04597267]
[1763600501354,0.15409177,91955.0,91954.0,0.04597267]
[1763600502059,0.04523117,91955.0,91954.0,0.04597267]
[1763600504554,0.04523117,91955.0,91954.0,0.00073267]
[1763600506761,0.04287,91946.0,91945.0,0.41899]
[1763600506952,0.04506803,91946.0,91945.0,0.05892267]
[1763600507566,0.04506803,91946.0,91945.0,0.02278267]
[1763600508287,0.04506803,91946.0,91936.0,0.00016314]
[1763600508288,0.04287,91937.0,91936.0,0.00016314]
[1763600508455,0.04506803,91937.0,91936.0,0.00089581]
[1763600508971,0.04506803,91937.0,91936.0,0.00016314]
[1763600510166,0.1517638,91927.0,91926.0,0.05925196]
[1763600510368,0.15396183,91927.0,91926.0,0.05925196]
[1763600510563,0.04506803,91927.0,91926.0,0.05925196]
[1763600510861,0.04506803,91927.0,91926.0,0.05998463]
[1763600515060,0.1517745,91918.0,91917.0,0.02221314]
[1763600515372,0.15397253,91918.0,91917.0,0.02221314]
[1763600516660,0.15397253,91918.0,91917.0,0.02321314]
[1763600517372,0.15397253,91918.0,91908.0,0.1701081]
[1763600517373,0.1517851,91909.0,91908.0,0.02205]
[1763600517674,0.1517887,91906.0,91905.0,0.07707475]
[1763600517876,0.15398673,91906.0,91905.0,0.10026475]
[1763600519874,0.15398673,91906.0,91905.0,0.10099742]
[1763600520172,0.15398673,91906.0,91905.0,0.10199742]
[1763600520573,0.04506803,91906.0,91905.0,0.10199742]
[1763600522265,0.00219803,91906.0,91905.0,0.10199742]
[1763600522671,0.15438673,91906.0,91905.0,0.10199742]
[1763600522877,0.04546803,91906.0,91905.0,0.10199742]
[1763600523960,0.00219803,91906.0,91905.0,0.10199742]
[1763600524162,0.3608,91910.0,91909.0,0.1537351]
[1763600524368,0.36299803,91910.0,91909.0,0.15446777]
[1763600524572,0.3608,91910.0,91909.0,0.15446777]
[1763600524970,0.00016314,91915.0,91914.0,0.1537292]
[1763600525178,0.00016314,91915.0,91914.0,0.15446187]
[1763600525372,0.02458117,91915.0,91914.0,0.15446187]
[1763600526175,0.02458117,91915.0,91914.0,0.15546187]
[1763600526485,0.00236117,91915.0,91914.0,0.15546187]
[1763600529581,0.00016314,91915.0,91914.0,0.15546187]
[1763600529780,0.15453917,91915.0,91914.0,0.00173267]
[1763600530077,0.1521887,91906.0,91905.0,0.05502475]
[1763600530265,0.51518673,91906.0,91905.0,0.07726475]
[1763600530466,0.51518673,91906.0,91905.0,0.09984475]
[1763600531884,0.51518673,91906.0,91905.0,0.10084475]
[1763600535885,0.40626803,91906.0,91905.0,0.10084475]
[1763600537770,0.36299803,91906.0,91905.0,0.10084475]
[1763600537970,0.36299803,91906.0,91905.0,0.09984475]
[1763600538179,0.38521803,91906.0,91905.0,0.09984475]
[1763600539389,0.36299803,91906.0,91905.0,0.09984475]
[1763600539790,0.38521803,91906.0,91905.0,0.09984475]
[1763600540284,0.40626803,91906.0,91905.0,0.09984475]
[1763600540483,0.40626803,91906.0,91905.0,0.07726475]
[1763600541990,0.40626803,91906.0,91905.0,0.05502475]
[1763600544696,0.40626803,91906.0,91896.0,0.00016314]
[1763600544697,0.1248894,91897.0,91896.0,3.14e-06]
[1763600544885,0.1245765,91891.0,91890.0,0.00462953]
[1763600545088,0.94757453,91891.0,91890.0,0.00462953]
[1763600545289,0.01564,91889.0,91888.0,0.025]
[1763600545488,0.02565803,91889.0,91888.0,0.02166617]
[1763600546091,0.02575485,91889.0,91888.0,0.02166617]
[1763600546295,0.01793485,91889.0,91888.0,0.02166617]
[1763600546694,0.12297485,91889.0,91888.0,0.02166617]
[1763600549904,0.12297485,91889.0,91888.0,0.06711617]
[1763600550890,0.01793485,91889.0,91888.0,0.06711617]
[1763600551098,0.12297485,91889.0,91888.0,0.06711617]
[1763600555696,0.12297485,91889.0,91888.0,0.02166617]
[1763600556904,0.12297485,91889.0,91888.0,0.04347617]
[1763600558306,0.12297485,91889.0,91888.0,0.02166617]
[1763600559711,0.12297485,91889.0,91888.0,0.06467617]
[1763600563911,0.01793485,91889.0,91888.0,0.06467617]
[1763600564207,0.00229485,91889.0,91888.0,0.06467617]
[1763600564414,9.682e-05,91889.0,91888.0,0.06467617]
[1763600565617,0.2564218,91904.0,91903.0,0.04301]
[1763600565812,0.14969803,91904.0,91903.0,0.1519322]
[1763600566220,0.00219803,91904.0,91903.0,0.1519322]
[1763600566406,0.3608,91908.0,91907.0,0.1519275]
[1763600566407,0.38181,91908.0,91907.0,0.1519275]
[1763600566712,0.38400803,91908.0,91907.0,0.1519275]
[1763600566915,0.36299803,91908.0,91907.0,0.1519275]
[1763600567919,0.51433433,91908.0,91907.0,0.04301]
[1763600568219,0.47191433,91908.0,91907.0,0.04301]
[1763600568817,0.36299803,91908.0,91907.0,0.04301]
[1763600573412,0.38400803,91908.0,91907.0,0.04301]